bitfinex-derivatives/quotes_BTCF0:USTF0_20240910
["timestamp","ask_amount","ask_price","bid_price","bid_amount"]
[1726002256020,0.40177993,57546.0,57545.0,0.008]
[1726002256519,0.02801593,57546.0,57545.0,0.094884]
[1726002256720,0.086881,57548.0,57546.0,0.086882]
[1726002256920,0.086881,57548.0,57547.0,0.0469]
[1726002257231,0.086881,57548.0,57547.0,0.133781]
[1726002257430,0.0467,57557.0,57547.0,0.0469]
[1726002257623,0.086867,57557.0,57547.0,0.2469]
[1726002257821,0.286861,57561.0,57557.0,0.086865]
[1726002258022,0.286861,57561.0,57558.0,0.0943]
[1726002258226,0.286861,57561.0,57559.0,0.086861]
[1726002258426,0.286861,57561.0,57560.0,0.086861]
[1726002258626,0.086862,57560.0,57558.0,0.0943]
[1726002259330,0.086863,57559.0,57558.0,0.0943]
[1726002260128,0.086863,57559.0,57558.0,0.181164]
[1726002261036,0.093863,57559.0,57558.0,0.182164]
[1726002261337,0.007,57559.0,57558.0,0.182164]
[1726002261532,0.01,57559.0,57558.0,0.183164]
[1726002262232,0.01,57559.0,57558.0,0.182164]
[1726002262233,0.007,57559.0,57558.0,0.182164]
[1726002262433,0.01,57559.0,57558.0,0.182164]
[1726002263342,0.009,57559.0,57558.0,0.182164]
[1726002263834,0.0285232,57561.0,57560.0,0.086861]
[1726002264035,0.086853,57566.0,57565.0,0.086853]
[1726002264231,0.2,57570.0,57567.0,0.086849]
[1726002264433,0.086849,57568.0,57567.0,0.086849]
[1726002264825,0.086841,57573.0,57572.0,0.086842]
[1726002265231,0.02973325,57575.0,57574.0,0.08684]
[1726002265827,0.02805325,57575.0,57574.0,0.08684]
[1726002266023,0.086826,57584.0,57572.0,0.06933926]
[1726002266024,0.2,57586.0,57572.0,0.06933926]
[1726002266233,0.02765838,57585.0,57582.0,0.086828]
[1726002266437,0.2,57586.0,57582.0,0.086828]
[1726002266925,0.086826,57583.0,57582.0,0.086828]
[1726002267537,0.086826,57583.0,57582.0,0.087828]
[1726002268045,0.089826,57583.0,57582.0,0.087828]
[1726002268229,0.096826,57583.0,57582.0,0.088828]
[1726002269134,0.01,57583.0,57582.0,0.088828]
[1726002269727,0.01,57583.0,57582.0,0.002]
[1726002269728,0.096826,57583.0,57582.0,0.002]
[1726002271930,0.096826,57583.0,57582.0,0.0492]
[1726002272829,0.01,57583.0,57582.0,0.136028]
[1726002274536,0.01,57583.0,57582.0,1.257028]
[1726002275734,0.01,57583.0,57582.0,1.343856]
[1726002276237,0.004,57594.0,57592.0,0.086813]
[1726002276435,0.086807,57596.0,57588.0,0.086819]
[1726002276637,0.086807,57596.0,57589.0,0.0453]
[1726002277229,0.1146466,57596.0,57589.0,0.0453]
[1726002277429,0.003,57593.0,57592.0,0.087813]
[1726002277936,0.0328396,57596.0,57592.0,1.208733]
[1726002278142,0.005,57596.0,57595.0,0.086808]
[1726002278343,0.005,57596.0,57595.0,0.686808]
[1726002278537,0.005,57596.0,57595.0,1.207688]
[1726002279037,0.412891,57607.0,57595.0,1.12088]
[1726002279038,0.086796,57604.0,57595.0,1.12088]
[1726002279242,0.3261,57607.0,57596.0,0.0458]
[1726002279243,0.086804,57598.0,57596.0,0.0458]
[1726002279445,0.086804,57598.0,57596.0,0.132606]
[1726002279835,0.0481,57605.0,57596.0,0.132606]
[1726002279836,0.086805,57597.0,57596.0,0.132606]
[1726002280140,0.11534522,57606.0,57599.0,0.086802]
[1726002280341,0.086805,57598.0,57596.0,0.0458]
[1726002281344,0.004,57607.0,57596.0,0.0458]
[1726002281345,0.086799,57601.0,57596.0,0.0458]
[1726002281644,0.086796,57604.0,57596.0,0.0458]
[1726002282046,0.086796,57604.0,57603.0,0.086796]
[1726002282241,0.02775889,57610.0,57605.0,0.086792]
[1726002282242,0.08679,57607.0,57605.0,0.086792]
[1726002282434,0.08679,57607.0,57606.0,0.086792]
[1726002283247,0.02775889,57610.0,57609.0,0.086787]
[1726002283540,0.08678,57614.0,57609.0,0.086787]
[1726002283745,0.086786,57610.0,57609.0,0.086787]
[1726002284047,0.086782,57613.0,57612.0,0.086782]
[1726002285943,0.086782,57613.0,57610.0,0.0473]
[1726002286247,0.086782,57613.0,57612.0,0.001]
[1726002286747,0.086782,57613.0,57612.0,0.087782]
[1726002286946,0.086782,57613.0,57612.0,0.088782]
[1726002287145,0.086782,57613.0,57612.0,0.087782]
[1726002287343,0.02818643,57616.0,57615.0,0.086778]
[1726002287543,0.18247,57621.0,57615.0,0.086778]
[1726002288540,0.18247,57621.0,57615.0,0.087778]
[1726002288737,0.0957,57621.0,57616.0,0.086775]
[1726002288937,0.086775,57617.0,57616.0,0.086775]
[1726002289138,0.0483,57621.0,57615.0,0.001]
[1726002289139,0.02771983,57621.0,57615.0,0.001]
[1726002289345,0.086763,57626.0,57625.0,0.086763]
[1726002290641,0.086763,57626.0,57625.0,0.087763]
[1726002291345,0.086763,57626.0,57625.0,0.088763]
[1726002291943,0.02861995,57629.0,57628.0,0.086759]
[1726002292143,0.0906,57637.0,57630.0,0.086756]
[1726002292453,0.086746,57636.0,57630.0,0.086756]
[1726002292749,0.086759,57628.0,57626.0,0.179261]
[1726002292942,0.08676,57627.0,57626.0,0.179261]
[1726002293337,0.08676,57627.0,57626.0,0.131961]
[1726002293537,0.086762,57626.0,57625.0,0.001]
[1726002293943,0.086751,57633.0,57617.0,0.0925]
[1726002294144,0.086762,57626.0,57617.0,0.0925]
[1726002295145,0.086762,57626.0,57624.0,0.086763]
[1726002295346,0.086763,57625.0,57624.0,0.086763]
[1726002296551,0.086751,57633.0,57617.0,0.0925]
[1726002296552,0.086767,57623.0,57617.0,0.0925]
[1726002296759,0.086767,57623.0,57622.0,0.086768]
[1726002298753,0.086767,57623.0,57622.0,0.087768]
[1726002298952,0.086767,57623.0,57622.0,0.088768]
[1726002300651,0.086762,57626.0,57625.0,0.086761]
[1726002300857,0.086757,57629.0,57628.0,0.086756]
[1726002302359,0.086757,57629.0,57628.0,0.088756]
[1726002302951,0.02888372,57631.0,57630.0,0.086756]
[1726002303159,0.086749,57635.0,57634.0,0.08675]
[1726002303354,0.086744,57638.0,57637.0,0.086743]
[1726002304145,0.086744,57638.0,57630.0,0.0472]
[1726002304146,0.086738,57642.0,57641.0,0.086737]
[1726002304555,0.11518589,57642.0,57641.0,0.086737]
[1726002305453,0.11518589,57642.0,57641.0,0.087737]
[1726002305663,0.11518589,57642.0,57641.0,0.088737]
[1726002305952,0.086732,57646.0,57645.0,0.086733]
[1726002306354,0.086727,57649.0,57647.0,0.086729]
[1726002306853,0.086727,57649.0,57648.0,0.086728]
[1726002307457,0.1153675,57653.0,57650.0,0.086725]
[1726002307649,0.086723,57652.0,57650.0,0.086725]
[1726002307952,0.13059313,57651.0,57643.0,0.086736]
[1726002308159,0.02811876,57650.0,57649.0,0.086727]
[1726002308348,0.02836258,57655.0,57642.0,0.0938]
[1726002308660,0.02811595,57654.0,57653.0,0.086721]
[1726002308848,0.13058973,57657.0,57656.0,0.086716]
[1726002309357,0.13050475,57657.0,57650.0,0.001]
[1726002309953,0.13050475,57657.0,57648.0,0.001]
[1726002309954,0.02811536,57656.0,57648.0,0.001]
[1726002310163,0.02811536,57655.0,57650.0,0.001]
[1726002310354,0.086724,57651.0,57650.0,0.001]
[1726002310555,0.11484086,57651.0,57650.0,0.001]
[1726002310751,0.086728,57648.0,57647.0,0.08673]
[1726002312555,0.086728,57648.0,57647.0,0.08773]
[1726002313062,0.086728,57648.0,57647.0,0.08873]
[1726002313359,0.086723,57652.0,57649.0,0.086726]
[1726002313560,0.11484127,57651.0,57649.0,0.086726]
[1726002313853,0.11484127,57651.0,57647.0,0.002]
[1726002313854,0.086721,57653.0,57652.0,0.086722]
[1726002314061,0.02811564,57653.0,57652.0,0.086722]
[1726002314554,0.02811564,57653.0,57647.0,0.002]
[1726002314555,0.18910839,57655.0,57654.0,0.086719]
[1726002314761,0.13050501,57655.0,57654.0,0.086719]
[1726002315059,0.086712,57659.0,57649.0,0.002]
[1726002315256,0.11482638,57658.0,57657.0,0.086714]
[1726002315849,0.02811338,57658.0,57657.0,0.086714]
[1726002316049,0.10238939,57660.0,57652.0,0.001]
[1726002316050,0.086711,57660.0,57652.0,0.001]
[1726002316249,0.086713,57659.0,57657.0,0.086713]
[1726002316456,0.02777137,57663.0,57652.0,0.001]
[1726002316657,0.08672,57654.0,57653.0,0.086719]
[1726002317044,0.0465,57667.0,57649.0,0.001]
[1726002317255,0.086725,57651.0,57650.0,0.086725]
[1726002318659,0.086725,57651.0,57650.0,0.087725]
[1726002319254,0.086718,57656.0,57650.0,0.001]
[1726002319662,0.086708,57662.0,57650.0,0.001]
[1726002319962,0.086718,57655.0,57650.0,0.001]
[1726002320558,0.086718,57655.0,57650.0,0.002]
[1726002320960,0.086718,57655.0,57650.0,0.001]
[1726002321667,0.086718,57655.0,57648.0,0.0457]
[1726002322762,0.086713,57658.0,57657.0,0.086713]
[1726002324368,0.086713,57658.0,57657.0,0.087713]
[1726002324668,0.11480244,57658.0,57657.0,0.087713]
[1726002325355,0.11480244,57658.0,57657.0,0.088713]
[1726002326764,0.11480244,57658.0,57657.0,0.101793]
[1726002327572,0.11480244,57658.0,57657.0,0.105093]
[1726002328664,0.18909039,57667.0,57666.0,0.086701]
[1726002328869,0.086701,57667.0,57666.0,0.086701]
[1726002329265,0.02811032,57667.0,57661.0,0.0451]
[1726002329566,0.086692,57673.0,57672.0,0.086691]
[1726002329761,0.11479833,57673.0,57672.0,0.086691]
[1726002329958,0.086692,57673.0,57672.0,0.086691]
[1726002330370,0.07376446,57676.0,57675.0,0.086688]
[1726002330565,0.10186972,57676.0,57675.0,0.086688]
[1726002330769,0.086692,57673.0,57666.0,0.002]
[1726002331072,0.086692,57673.0,57666.0,0.001]
[1726002331466,0.07376446,57676.0,57664.0,0.05174887]
[1726002331665,0.07376446,57676.0,57675.0,0.086688]
[1726002331971,0.16045046,57676.0,57675.0,0.086688]
[1726002332561,0.16045046,57676.0,57675.0,0.087688]
[1726002333062,0.16045046,57676.0,57675.0,0.088688]
[1726002334668,0.16045046,57676.0,57675.0,0.002]
[1726002336867,0.16045046,57676.0,57675.0,0.088688]
[1726002337968,0.11515046,57676.0,57675.0,0.088688]
[1726002338170,0.24035477,57676.0,57675.0,0.086688]
[1726002338477,0.12027445,57676.0,57675.0,0.173376]
[1726002338666,0.131031,57676.0,57675.0,0.173376]
[1726002338864,0.02817742,57679.0,57673.0,0.0922]
[1726002339070,0.114788,57678.0,57677.0,0.086683]
[1726002339269,0.028103,57678.0,57677.0,0.086683]
[1726002339472,0.086679,57681.0,57680.0,0.086679]
[1726002339768,0.086685,57677.0,57673.0,0.0922]
[1726002340069,0.08668,57680.0,57673.0,0.0922]
[1726002340275,0.10290011,57676.0,57673.0,0.0942]
[1726002340579,0.02810265,57675.0,57674.0,0.086689]
[1726002340771,0.10290011,57677.0,57676.0,0.086686]
[1726002340963,0.13098823,57677.0,57676.0,0.086686]
[1726002341169,0.02810289,57677.0,57676.0,0.086686]
[1726002341369,0.13098768,57677.0,57676.0,0.086686]
[1726002342076,0.13098768,57677.0,57676.0,0.089986]
[1726002342273,0.10288479,57678.0,57677.0,0.086685]
[1726002342868,0.10288479,57679.0,57678.0,0.086683]
[1726002343473,0.086678,57682.0,57680.0,0.08668]
[1726002343674,0.086678,57682.0,57681.0,0.086679]
[1726002343977,0.086678,57682.0,57677.0,0.001]
[1726002343978,0.1785762,57682.0,57677.0,0.001]
[1726002344170,0.10286731,57678.0,57677.0,0.001]
[1726002344370,0.10286731,57678.0,57677.0,0.087685]
[1726002344974,0.10286728,57678.0,57677.0,0.087685]
[1726002345170,0.10286728,57678.0,57677.0,0.086685]
[1726002345394,0.10286728,57678.0,57676.0,0.0043]
[1726002345395,0.02810109,57678.0,57676.0,0.0043]
[1726002345581,0.10285771,57678.0,57676.0,0.0043]
[1726002345990,0.10285771,57678.0,57677.0,0.087685]
[1726002346185,0.0288395,57683.0,57682.0,0.086677]
[1726002346392,0.135174,57685.0,57684.0,0.086674]
[1726002346889,0.16275225,57685.0,57684.0,0.086674]
[1726002347894,0.07607825,57685.0,57684.0,0.086674]
[1726002348783,0.07607825,57685.0,57684.0,0.087674]
[1726002348987,0.02757825,57685.0,57684.0,0.087674]
[1726002349191,0.004,57697.0,57691.0,0.086662]
[1726002349192,0.3737,57696.0,57691.0,0.086662]
[1726002349494,0.086663,57692.0,57691.0,0.086662]
[1726002350885,0.086663,57692.0,57691.0,0.087662]
[1726002352886,0.02854593,57694.0,57693.0,0.086661]
[1726002353087,0.02854593,57694.0,57691.0,0.001]
[1726002353088,0.086652,57699.0,57698.0,0.086652]
[1726002354288,0.086652,57699.0,57698.0,0.087652]
[1726002354890,0.086647,57702.0,57701.0,0.086648]
[1726002356499,0.086647,57702.0,57701.0,0.087648]
[1726002356702,0.086647,57702.0,57701.0,0.101718]
[1726002358090,0.086647,57702.0,57701.0,0.123978]
[1726002360194,0.02887106,57704.0,57701.0,0.03733]
[1726002360401,0.08664,57707.0,57701.0,0.03733]
[1726002360603,0.08664,57707.0,57701.0,0.123978]
[1726002360604,0.086647,57702.0,57701.0,0.123978]
[1726002361004,0.173294,57702.0,57701.0,0.03733]
[1726002361203,0.1147382,57702.0,57701.0,0.03733]
[1726002361510,0.1147382,57702.0,57701.0,0.01020638]
[1726002362097,0.1147382,57702.0,57701.0,0.01120638]
[1726002362407,0.14352816,57702.0,57701.0,0.01120638]
[1726002362704,0.20723364,57702.0,57701.0,0.00309552]
[1726002362905,0.086659,57694.0,57693.0,0.08666]
[1726002363206,0.086662,57692.0,57691.0,0.047]
[1726002363405,0.11475531,57692.0,57691.0,0.047]
[1726002364201,0.11475531,57692.0,57683.0,0.086675]
[1726002364202,0.09132138,57692.0,57683.0,0.086675]
[1726002364404,0.10287244,57686.0,57683.0,0.086675]
[1726002364801,0.10287244,57685.0,57683.0,0.086675]
[1726002365005,0.02809331,57684.0,57683.0,0.086675]
[1726002365311,0.10287244,57687.0,57684.0,0.086673]
[1726002365605,0.13097016,57686.0,57684.0,0.086673]
[1726002365801,0.21433316,57685.0,57684.0,0.086673]
[1726002366001,0.086674,57684.0,57683.0,0.007]
[1726002366207,0.11477172,57684.0,57683.0,0.007]
[1726002366599,0.11477172,57684.0,57683.0,0.014]
[1726002366901,0.11477172,57684.0,57683.0,0.007]
[1726002367102,0.11477172,57684.0,57681.0,0.0463]
[1726002367303,0.02809772,57683.0,57681.0,0.0463]
[1726002368302,0.086674,57684.0,57681.0,0.0463]
[1726002368303,0.086674,57684.0,57681.0,0.11563926]
[1726002368602,0.086676,57683.0,57682.0,0.086677]
[1726002370309,0.086676,57683.0,57682.0,0.087677]
[1726002371403,0.086676,57683.0,57682.0,0.15701626]
[1726002371605,0.087676,57683.0,57682.0,0.15801626]
[1726002372311,0.001,57683.0,57682.0,0.15801626]
[1726002373415,0.001,57683.0,57682.0,0.088677]
[1726002375305,0.11532431,57687.0,57686.0,0.086671]
[1726002375504,0.086674,57684.0,57683.0,0.15583249]
[1726002375706,0.086674,57684.0,57681.0,0.0463]
[1726002375707,0.086677,57682.0,57681.0,0.0463]
[1726002376106,0.086677,57682.0,57681.0,0.09817267]
[1726002376313,0.086677,57682.0,57681.0,0.0463]
[1726002377014,0.087677,57682.0,57681.0,0.0463]
[1726002377214,0.087677,57682.0,57681.0,0.09817267]
[1726002377819,0.087677,57682.0,57681.0,0.18485167]
[1726002378414,0.086677,57682.0,57681.0,0.18585167]
[1726002378617,0.087677,57682.0,57681.0,0.18685167]
[1726002378919,0.087677,57682.0,57681.0,0.134979]
[1726002378920,0.001,57682.0,57681.0,0.134979]
[1726002379115,0.001,57682.0,57681.0,0.20414113]
[1726002379316,0.001,57682.0,57681.0,0.134979]
[1726002380211,0.001,57682.0,57681.0,0.221658]
[1726002380412,0.090662,57693.0,57681.0,0.23031079]
[1726002380616,0.086662,57693.0,57690.0,0.05186652]
[1726002380826,0.086662,57693.0,57692.0,0.086662]
[1726002381122,0.086657,57696.0,57695.0,0.086656]
[1726002381511,0.086654,57698.0,57691.0,0.10016652]
[1726002381712,0.0016,57697.0,57692.0,0.05186652]
[1726002381919,0.086654,57698.0,57697.0,0.086655]
[1726002382123,0.1146657,57698.0,57697.0,0.086655]
[1726002382324,0.0280117,57698.0,57697.0,0.086655]
[1726002382521,0.086648,57702.0,57701.0,0.086649]
[1726002384427,0.11526481,57702.0,57701.0,0.086649]
[1726002385326,0.11526481,57702.0,57701.0,0.088649]
[1726002385927,0.11526481,57702.0,57701.0,0.002]
[1726002386124,0.11526481,57702.0,57701.0,0.001]
[1726002386325,0.11526481,57702.0,57701.0,0.002]
[1726002390428,0.20191281,57702.0,57701.0,0.002]
[1726002391324,0.23000545,57702.0,57701.0,0.002]
[1726002392024,0.3329289,57702.0,57701.0,0.002]
[1726002392229,0.2462809,57702.0,57701.0,0.088649]
[1726002392529,0.14335745,57702.0,57701.0,0.088649]
[1726002393732,0.11526481,57702.0,57701.0,0.088649]
[1726002393927,0.14335699,57702.0,57701.0,0.088649]
[1726002398338,0.11526481,57702.0,57701.0,0.088649]
[1726002399630,0.02861681,57702.0,57701.0,0.088649]
[1726002399835,0.132934,57712.0,57711.0,0.086634]
[1726002400136,0.086628,57715.0,57714.0,0.086629]
[1726002401528,0.086628,57715.0,57714.0,0.087629]
[1726002402745,0.086628,57715.0,57714.0,0.088629]
[1726002404344,0.02789803,57716.0,57715.0,0.086628]
[1726002404538,0.086626,57716.0,57715.0,0.086628]
[1726002405432,0.086626,57716.0,57715.0,0.133528]
[1726002405640,0.086626,57716.0,57715.0,0.134528]
[1726002405837,0.086626,57716.0,57715.0,0.0479]
[1726002406350,0.11471255,57716.0,57715.0,0.0479]
[1726002406746,0.11471255,57716.0,57715.0,0.0489]
[1726002407043,0.20133855,57716.0,57715.0,0.002]
[1726002407245,0.26590161,57716.0,57715.0,0.00053732]
[1726002408044,0.35252761,57716.0,57715.0,0.00053732]
[1726002408345,0.086638,57708.0,57707.0,0.0487]
[1726002408545,0.11472455,57708.0,57707.0,0.0487]
[1726002408746,0.086638,57708.0,57707.0,0.0487]
[1726002408953,0.11472455,57708.0,57707.0,0.0487]
[1726002409246,0.11472455,57708.0,57707.0,0.13534]
[1726002409646,0.086638,57708.0,57707.0,0.13634]
[1726002409847,0.11472522,57708.0,57707.0,0.13634]
[1726002410035,0.11472522,57708.0,57707.0,0.13734]
[1726002411843,0.14280204,57708.0,57707.0,0.13734]
[1726002413344,0.14280204,57708.0,57707.0,0.20649536]
[1726002413345,0.11471482,57708.0,57707.0,0.20649536]
[1726002415138,0.11471482,57708.0,57707.0,0.13734]
[1726002415343,0.11471482,57708.0,57707.0,0.20649536]
[1726002416351,0.11471482,57708.0,57707.0,0.13734]
[1726002416549,0.20135282,57708.0,57707.0,0.002]
[1726002416749,0.02807682,57708.0,57705.0,0.05189115]
[1726002416949,0.086644,57704.0,57703.0,0.05189115]
[1726002417143,0.51988,57707.0,57701.0,0.05189115]
[1726002417144,0.173294,57702.0,57701.0,0.05189115]
[1726002417342,0.173298,57701.0,57700.0,0.08159115]
[1726002417553,0.173298,57701.0,57700.0,0.0297]
[1726002418939,0.174298,57701.0,57700.0,0.0307]
[1726002419946,0.174298,57701.0,57700.0,0.0317]
[1726002420855,0.087649,57701.0,57700.0,0.0317]
[1726002421042,0.004,57711.0,57700.0,1.24607464]
[1726002421244,0.086644,57704.0,57701.0,0.06917749]
[1726002421444,0.086644,57704.0,57701.0,0.06918219]
[1726002421752,0.086632,57712.0,57703.0,0.05188807]
[1726002421947,0.0464,57714.0,57700.0,0.10088219]
[1726002422144,0.086649,57701.0,57700.0,0.0317]
[1726002423662,0.086649,57701.0,57700.0,0.08359015]
[1726002423851,0.093635,57711.0,57700.0,0.08359015]
[1726002424169,0.086635,57711.0,57704.0,0.05189015]
[1726002424547,0.086643,57705.0,57704.0,0.05189015]
[1726002425057,0.086644,57704.0,57703.0,0.13853515]
[1726002425554,0.086644,57704.0,57703.0,0.086645]
[1726002426149,0.086631,57713.0,57701.0,0.0472]
[1726002426449,0.086644,57704.0,57703.0,0.05189159]
[1726002427850,0.087644,57704.0,57703.0,0.05289159]
[1726002428055,0.087644,57704.0,57703.0,0.05389159]
[1726002428453,0.086649,57701.0,57700.0,0.02633284]
[1726002428658,0.11474187,57701.0,57700.0,0.02633284]
[1726002428864,0.26549196,57701.0,57700.0,0.02633284]
[1726002429455,0.17884296,57701.0,57700.0,0.02633284]
[1726002429961,0.26549196,57701.0,57700.0,0.02633284]
[1726002430160,0.17884296,57701.0,57700.0,0.02633284]
[1726002430560,0.11474187,57701.0,57700.0,0.02633284]
[1726002431251,0.11674187,57701.0,57700.0,0.02833284]
[1726002431555,0.11674366,57701.0,57700.0,0.02833284]
[1726002432552,0.03009466,57701.0,57700.0,0.02833284]
[1726002432751,0.004,57712.0,57700.0,1.14825284]
[1726002432957,0.02808629,57711.0,57701.0,0.0471]
[1726002433162,0.10322093,57716.0,57702.0,0.132147]
[1726002433462,0.10322093,57718.0,57716.0,0.086626]
[1726002433653,0.10322093,57718.0,57717.0,0.178725]
[1726002433654,0.13130532,57718.0,57717.0,0.178725]
[1726002434770,0.13330532,57718.0,57717.0,0.178725]
[1726002434964,0.13530532,57718.0,57717.0,0.179725]
[1726002435355,0.22192832,57718.0,57717.0,0.0931]
[1726002435552,0.22187601,57718.0,57717.0,0.0931]
[1726002435872,0.1187082,57718.0,57717.0,0.0931]
[1726002436263,0.1167082,57718.0,57717.0,0.0931]
[1726002436465,0.1167082,57718.0,57717.0,0.0941]
[1726002436466,0.089623,57718.0,57717.0,0.0941]
[1726002436766,0.087623,57718.0,57717.0,0.0941]
[1726002437858,0.087623,57718.0,57717.0,0.0486]
[1726002440370,0.001,57718.0,57717.0,1.34161]
[1726002440665,0.004,57728.0,57727.0,0.08661]
[1726002440966,0.086606,57730.0,57725.0,0.05179017]
[1726002441168,0.086606,57730.0,57726.0,0.0465]
[1726002441366,0.173213,57730.0,57729.0,0.086607]
[1726002441570,0.086606,57730.0,57729.0,0.086607]
[1726002443865,0.086606,57730.0,57729.0,0.087607]
[1726002444061,0.086606,57730.0,57729.0,0.088607]
[1726002444769,0.11500252,57730.0,57729.0,0.088607]
[1726002451475,0.11500252,57730.0,57729.0,0.002]
[1726002451679,0.12012667,57730.0,57719.0,0.0489]
[1726002451881,0.10284842,57724.0,57719.0,0.0489]
[1726002452470,0.10284842,57725.0,57719.0,0.0489]
[1726002452683,0.10284842,57725.0,57724.0,0.086614]
[1726002452865,0.02807924,57727.0,57726.0,0.086611]
[1726002453070,0.02807936,57727.0,57719.0,0.0489]
[1726002453272,0.02807936,57727.0,57726.0,0.086611]
[1726002453675,0.02807936,57727.0,57726.0,0.173222]
[1726002453676,0.10288238,57727.0,57726.0,0.173222]
[1726002453878,0.02807936,57727.0,57726.0,0.173222]
[1726002454192,0.10288238,57730.0,57729.0,0.086607]
[1726002454873,0.02807484,57730.0,57729.0,0.086607]
[1726002455975,0.11467984,57730.0,57729.0,0.086607]
[1726002456170,0.13095858,57730.0,57728.0,0.0481]
[1726002456376,0.0280762,57729.0,57728.0,0.134708]
[1726002457291,0.1146832,57729.0,57728.0,0.135708]
[1726002457577,0.1146832,57729.0,57728.0,0.0491]
[1726002457981,0.1156832,57729.0,57728.0,0.0491]
[1726002458177,0.17903804,57729.0,57728.0,0.0491]
[1726002458571,0.088607,57729.0,57728.0,0.0501]
[1726002459082,0.087607,57729.0,57728.0,0.0491]
[1726002459272,0.088607,57729.0,57728.0,0.136708]
[1726002467083,0.18025592,57729.0,57728.0,0.136708]
[1726002467684,0.18027727,57729.0,57728.0,0.136708]
[1726002468290,0.11668553,57729.0,57728.0,0.136708]
[1726002468489,0.18035125,57729.0,57728.0,0.136708]
[1726002468682,0.17935125,57729.0,57728.0,0.135708]
[1726002468883,0.18035125,57729.0,57728.0,0.136708]
[1726002470584,0.17935125,57729.0,57728.0,0.135708]
[1726002470785,0.18035125,57729.0,57728.0,0.136708]
[1726002470989,0.180471,57729.0,57728.0,0.136708]
[1726002472687,0.11668508,57729.0,57728.0,0.136708]
[1726002473599,0.088607,57729.0,57728.0,0.136708]
[1726002476991,0.088607,57729.0,57728.0,0.002]
[1726002477193,1.1497618,57729.0,57724.0,0.05193858]
[1726002477402,0.086616,57723.0,57722.0,0.05193858]
[1726002477691,0.1081818,57728.0,57719.0,0.05193858]
[1726002477692,0.17324,57720.0,57719.0,0.05193858]
[1726002477891,0.17324,57720.0,57716.0,0.06925144]
[1726002477892,0.086622,57719.0,57718.0,0.05193858]
[1726002478096,0.132622,57719.0,57718.0,0.05193858]
[1726002478495,0.086623,57718.0,57717.0,0.05193858]
[1726002479294,0.046,57719.0,57715.0,0.06925144]
[1726002479489,0.0477,57717.0,57713.0,0.06925144]
[1726002479687,0.0477,57717.0,57712.0,0.086631]
[1726002479688,0.134325,57717.0,57716.0,0.05189194]
[1726002480694,0.08663,57714.0,57712.0,0.086631]
[1726002480891,0.02808566,57713.0,57712.0,0.086631]
[1726002482295,0.02808566,57713.0,57712.0,0.091631]
[1726002482689,0.11471254,57716.0,57714.0,0.086628]
[1726002482901,0.02808554,57715.0,57714.0,0.086628]
[1726002483398,0.02797294,57717.0,57716.0,0.173252]
[1726002483586,0.10334812,57722.0,57721.0,0.086619]
[1726002484291,0.02808202,57724.0,57717.0,0.0483]
[1726002484598,0.02861703,57725.0,57722.0,0.086617]
[1726002484599,0.13134694,57723.0,57722.0,0.086617]
[1726002484805,0.02861703,57725.0,57724.0,0.086614]
[1726002485110,0.02808048,57725.0,57724.0,0.086614]
[1726002485401,0.13134463,57728.0,57727.0,0.08661]
[1726002485601,0.02807964,57728.0,57727.0,0.08661]
[1726002486794,0.03007964,57728.0,57727.0,0.08761]
[1726002487003,0.03207964,57728.0,57727.0,0.08861]
[1726002488607,0.004,57728.0,57727.0,0.08861]
[1726002489711,0.090608,57728.0,57727.0,0.08861]
[1726002495611,0.25573858,57728.0,57727.0,0.002]
[1726002495802,0.090608,57728.0,57727.0,0.08861]
[1726002496504,0.22765899,57728.0,57727.0,0.08861]
[1726002496702,0.25573859,57728.0,57727.0,0.08861]
[1726002497297,0.25573859,57728.0,57727.0,0.002]
[1726002497503,0.25573859,57728.0,57727.0,0.08861]
[1726002497706,0.39320053,57728.0,57727.0,0.08718684]
[1726002499609,0.25573859,57728.0,57727.0,0.08718684]
[1726002500009,0.1821064,57728.0,57727.0,0.08718684]
[1726002500211,0.30266581,57728.0,57727.0,0.08718684]
[1726002502706,0.21605781,57728.0,57727.0,0.17379684]
[1726002503014,0.0320796,57728.0,57727.0,0.17379684]
[1726002503414,0.10734762,57728.0,57727.0,0.17379684]
[1726002503617,0.13542722,57728.0,57727.0,0.17379684]
[1726002503805,0.004,57728.0,57727.0,0.17379684]
[1726002507020,0.004,57728.0,57727.0,0.22339684]
[1726002509514,0.004,57728.0,57727.0,0.30986871]
[1726002510109,0.004,57728.0,57727.0,0.22339684]
[1726002512525,0.004,57728.0,57727.0,0.29252138]
[1726002513316,0.004,57728.0,57727.0,0.2925866]
[1726002515019,0.004,57738.0,57737.0,0.086595]
[1726002515224,0.41444801,57742.0,57737.0,0.086595]
[1726002515520,0.09058,57748.0,57744.0,0.086584]
[1726002515521,0.10334762,57747.0,57744.0,0.086584]
[1726002515721,0.086583,57745.0,57744.0,0.086584]
[1726002517119,0.086583,57745.0,57744.0,0.087584]
[1726002518517,0.086583,57745.0,57744.0,0.088584]
[1726002518713,0.10240036,57745.0,57736.0,0.02867297]
[1726002518923,0.12068036,57739.0,57738.0,0.086593]
[1726002519625,0.21274612,57739.0,57738.0,0.086593]
[1726002519822,0.09206576,57739.0,57738.0,0.086593]
[1726002520024,0.21274612,57739.0,57738.0,0.086593]
[1726002520225,0.09206576,57739.0,57738.0,0.087593]
[1726002520423,0.0639951,57739.0,57738.0,0.087593]
[1726002520628,0.09206576,57739.0,57738.0,0.088593]
[1726002520817,0.0639951,57739.0,57738.0,0.088593]
[1726002521017,0.09148614,57740.0,57738.0,0.002]
[1726002521222,0.09148614,57739.0,57738.0,0.002]
[1726002521430,0.09145591,57739.0,57738.0,0.002]
[1726002521931,0.08659,57741.0,57740.0,0.08659]
[1726002522135,0.17802434,57741.0,57740.0,0.08659]